[Event "Late-Titled-Tuesday-Blitz-January-23-2024"]
[Site "Chess.com"]
[Date "2024.01.23"]
[Round "10"]
[White "NovakRatko"]
[Black "SocoLoco"]
[Result "1-0"]
[WhiteElo "2359"]
[BlackElo "2205"]
[TimeControl "180+1"]
[EndTime "15:52:19 PST"]
[Termination "NovakRatko won on time"]

1. d4 {[%clk 0:03:00.9]} 1... d5 {[%clk 0:02:58.2]} 2. c4 {[%clk 0:03:00.7]}
2... Nc6 {[%clk 0:02:57.9]} 3. cxd5 {[%clk 0:03:01.1]} 3... Qxd5 {[%clk
0:02:56.5]} 4. Nc3 {[%clk 0:03:01.3]} 4... Qxd4 {[%clk 0:02:54.9]} 5. Bd2 {[%clk
0:03:01.9]} 5... a6 {[%clk 0:02:46.3]} 6. Nf3 {[%clk 0:03:00.6]} 6... Qd8 {[%clk
0:02:43.3]} 7. e4 {[%clk 0:02:58.3]} 7... e6 {[%clk 0:02:42.9]} 8. Qb3 {[%clk
0:02:56.8]} 8... Nf6 {[%clk 0:02:41.4]} 9. O-O-O {[%clk 0:02:56.5]} 9... Bd7
{[%clk 0:02:40.7]} 10. e5 {[%clk 0:02:55.2]} 10... Ng4 {[%clk 0:02:38.5]} 11.
Ne4 {[%clk 0:02:52]} 11... Ngxe5 {[%clk 0:02:32.1]} 12. Nxe5 {[%clk 0:02:48.4]}
12... Nxe5 {[%clk 0:02:33]} 13. Bc3 {[%clk 0:02:49]} 13... Ng4 {[%clk
0:02:11.2]} 14. h3 {[%clk 0:02:45]} 14... Nf6 {[%clk 0:02:09.7]} 15. Nxf6+
{[%clk 0:02:42.5]} 15... gxf6 {[%clk 0:02:10.6]} 16. Qxb7 {[%clk 0:02:42.9]}
16... Be7 {[%clk 0:01:50.3]} 17. Rxd7 {[%clk 0:02:35.5]} 17... Kxd7 {[%clk
0:01:42.2]} 18. Bxa6 {[%clk 0:02:34.1]} 18... Bd6 {[%clk 0:01:35]} 19. Rd1
{[%clk 0:02:26.8]} 19... Ke7 {[%clk 0:01:32]} 20. Bc4 {[%clk 0:02:20.2]} 20...
Rg8 {[%clk 0:01:21.5]} 21. Qf3 {[%clk 0:02:18.3]} 21... Rg6 {[%clk 0:01:10.4]}
22. h4 {[%clk 0:02:17.6]} 22... h5 {[%clk 0:01:07.3]} 23. Qxh5 {[%clk
0:02:08.7]} 23... Qh8 {[%clk 0:01:06.2]} 24. Qf3 {[%clk 0:02:04.9]} 24... Rd8
{[%clk 0:00:35.1]} 25. h5 {[%clk 0:02:02.2]} 25... Rh6 {[%clk 0:00:22.6]} 26. g4
{[%clk 0:02:00.3]} 26... Qg7 {[%clk 0:00:17.3]} 27. Bd2 {[%clk 0:01:41.8]} 27...
Rhh8 {[%clk 0:00:17.1]} 28. Qe4 {[%clk 0:01:39.6]} 28... Rdg8 {[%clk 0:00:14.7]}
29. Be2 {[%clk 0:01:38.9]} 29... f5 {[%clk 0:00:13.1]} 30. gxf5 {[%clk 0:01:36]}
30... Qe5 {[%clk 0:00:13.4]} 31. Qxe5 {[%clk 0:01:16.7]} 31... Bxe5 {[%clk
0:00:13.3]} 32. fxe6 {[%clk 0:01:17.1]} 32... fxe6 {[%clk 0:00:12.4]} 33. Be3
{[%clk 0:01:11.7]} 33... Rf8 {[%clk 0:00:10.5]} 34. b4 {[%clk 0:01:10.1]} 34...
Bf4 {[%clk 0:00:09]} 35. a4 {[%clk 0:01:02.3]} 35... Bxe3+ {[%clk 0:00:08.6]}
36. fxe3 {[%clk 0:01:02.1]} 36... Rf2 {[%clk 0:00:09.1]} 37. Rd2 {[%clk
0:00:59.2]} 37... Rg8 {[%clk 0:00:06.3]} 38. Bc4 {[%clk 0:00:51.6]} 38... Rxd2
{[%clk 0:00:05.1]} 39. Kxd2 {[%clk 0:00:51.7]} 39... Rg2+ {[%clk 0:00:04.4]} 40.
Be2 {[%clk 0:00:50.1]} 40... Rh2 {[%clk 0:00:04.9]} 41. a5 {[%clk 0:00:50.1]}
41... Kd6 {[%clk 0:00:04.6]} 42. Kd3 {[%clk 0:00:48.1]} 42... Kc6 {[%clk
0:00:05]} 43. e4 {[%clk 0:00:44]} 43... Rh3+ {[%clk 0:00:03.9]} 44. Kd4 {[%clk
0:00:43.4]} 44... Kb7 {[%clk 0:00:04.4]} 45. b5 {[%clk 0:00:42.8]} 45... Ra3
{[%clk 0:00:01.9]} 46. Ke5 {[%clk 0:00:39.3]} 1-0

[Event "Late-Titled-Tuesday-Blitz-January-23-2024"]
[Site "Chess.com"]
[Date "2024.01.23"]
[Round "10"]
[White "Oleksandr_Bortnyk"]
[Black "Harry_Rakkel"]
[Result "1-0"]
[WhiteElo "3048"]
[BlackElo "2719"]
[TimeControl "180+1"]
[EndTime "15:52:20 PST"]
[Termination "Oleksandr_Bortnyk won by resignation"]

1. e4 {[%clk 0:02:59.9]} 1... c6 {[%clk 0:02:57.1]} 2. d4 {[%clk 0:02:52.1]}
2... d5 {[%clk 0:02:55.7]} 3. Nc3 {[%clk 0:02:53]} 3... a6 {[%clk 0:02:54.4]} 4.
Bf4 {[%clk 0:02:50.7]} 4... e6 {[%clk 0:02:34.8]} 5. Bd3 {[%clk 0:02:48.4]} 5...
b5 {[%clk 0:02:31.9]} 6. Nf3 {[%clk 0:02:48.4]} 6... Nd7 {[%clk 0:02:31.5]} 7.
O-O {[%clk 0:02:46.6]} 7... Be7 {[%clk 0:02:23.6]} 8. exd5 {[%clk 0:02:20.8]}
8... cxd5 {[%clk 0:02:21.6]} 9. Ne5 {[%clk 0:02:13.9]} 9... Bb7 {[%clk
0:02:11.3]} 10. Re1 {[%clk 0:01:43.4]} 10... Ngf6 {[%clk 0:02:08.4]} 11. Qf3
{[%clk 0:01:40.7]} 11... Nb6 {[%clk 0:02:02.2]} 12. Qh3 {[%clk 0:01:35.4]} 12...
Qc8 {[%clk 0:01:59.3]} 13. Bg5 {[%clk 0:01:24.1]} 13... Nc4 {[%clk 0:01:52.2]}
14. Ne2 {[%clk 0:01:18.2]} 14... Nxb2 {[%clk 0:01:46.4]} 15. Nxf7 {[%clk
0:00:51.3]} 15... Kxf7 {[%clk 0:01:43.2]} 16. Nf4 {[%clk 0:00:52.1]} 16... Ne4
{[%clk 0:01:33]} 17. Bxe7 {[%clk 0:00:47.7]} 17... Kxe7 {[%clk 0:01:30.9]} 18.
Bxe4 {[%clk 0:00:48]} 18... dxe4 {[%clk 0:01:27.4]} 19. Qa3+ {[%clk 0:00:47.9]}
19... Kf7 {[%clk 0:01:23.8]} 20. Qxb2 {[%clk 0:00:48.2]} 20... Qc7 {[%clk
0:01:20.6]} 21. Nh5 {[%clk 0:00:43.8]} 21... Bd5 {[%clk 0:01:13.8]} 22. Ng3
{[%clk 0:00:36.6]} 22... Qc6 {[%clk 0:01:12.6]} 23. Re2 {[%clk 0:00:33.5]} 23...
Rac8 {[%clk 0:01:01.2]} 24. Rae1 {[%clk 0:00:30.5]} 24... Qc3 {[%clk 0:01:00.4]}
25. Qc1 {[%clk 0:00:30.3]} 25... Qxd4 {[%clk 0:00:57.6]} 26. Nxe4 {[%clk
0:00:30.1]} 26... Rc6 {[%clk 0:00:54]} 27. Qf4+ {[%clk 0:00:26.4]} 27... Ke7
{[%clk 0:00:50.8]} 28. Rd2 {[%clk 0:00:22.4]} 28... Qb4 {[%clk 0:00:44.7]} 29.
Qh4+ {[%clk 0:00:20]} 29... Kf8 {[%clk 0:00:34.3]} 30. Qd8+ {[%clk 0:00:16.7]}
30... Kf7 {[%clk 0:00:34.1]} 31. Qxh8 {[%clk 0:00:14.1]} 31... Rxc2 {[%clk
0:00:27.8]} 32. Ng5+ {[%clk 0:00:11.7]} 32... Kf6 {[%clk 0:00:25.6]} 33. Nxh7+
{[%clk 0:00:11.9]} 33... Kg6 {[%clk 0:00:23.8]} 34. Rdd1 {[%clk 0:00:05.8]}
34... Qf4 {[%clk 0:00:20.5]} 35. Rf1 {[%clk 0:00:02.4]} 35... Bxg2 {[%clk
0:00:18.3]} 36. Nf8+ {[%clk 0:00:02.6]} 36... Kf7 {[%clk 0:00:18]} 37. Rd7+
{[%clk 0:00:02.8]} 37... Kf6 {[%clk 0:00:17.8]} 38. Qxg7+ {[%clk 0:00:03.1]}
38... Kf5 {[%clk 0:00:15.8]} 39. Rf7+ {[%clk 0:00:03.3]} 1-0

[Event "Late-Titled-Tuesday-Blitz-January-23-2024"]
[Site "Chess.com"]
[Date "2024.01.23"]
[Round "10"]
[White "finec2"]
[Black "Smile2005"]
[Result "1/2-1/2"]
[WhiteElo "2206"]
[BlackElo "2398"]
[TimeControl "180+1"]
[EndTime "15:52:22 PST"]
[Termination "Game drawn - insufficient material"]

1. d4 {[%clk 0:02:59.7]} 1... c5 {[%clk 0:03:00.9]} 2. d5 {[%clk 0:02:56.3]}
2... e6 {[%clk 0:03:01.8]} 3. Nc3 {[%clk 0:02:49.8]} 3... Nf6 {[%clk 0:03:01.5]}
4. e4 {[%clk 0:02:49]} 4... d6 {[%clk 0:02:58.9]} 5. Nf3 {[%clk 0:02:41.8]} 5...
exd5 {[%clk 0:02:58.8]} 6. exd5 {[%clk 0:02:41.6]} 6... Be7 {[%clk 0:02:58.7]}
7. Be2 {[%clk 0:02:40.4]} 7... O-O {[%clk 0:02:58.8]} 8. O-O {[%clk 0:02:40.5]}
8... a6 {[%clk 0:02:59.4]} 9. a4 {[%clk 0:02:40.4]} 9... Nbd7 {[%clk 0:02:59.5]}
10. a5 {[%clk 0:02:38.9]} 10... Rb8 {[%clk 0:02:59.3]} 11. Nd2 {[%clk 0:02:34]}
11... b5 {[%clk 0:02:59]} 12. axb6 {[%clk 0:02:34.1]} 12... Nxb6 {[%clk
0:02:58.9]} 13. Nc4 {[%clk 0:02:34]} 13... Nxc4 {[%clk 0:02:56.7]} 14. Bxc4
{[%clk 0:02:33.9]} 14... a5 {[%clk 0:02:53.6]} 15. Bf4 {[%clk 0:02:25.4]} 15...
Re8 {[%clk 0:02:52.2]} 16. b3 {[%clk 0:02:21.8]} 16... Nd7 {[%clk 0:02:49.9]}
17. Qd2 {[%clk 0:02:11.7]} 17... Ne5 {[%clk 0:02:44.1]} 18. Bxe5 {[%clk
0:02:09.2]} 18... dxe5 {[%clk 0:02:45]} 19. Rad1 {[%clk 0:01:41.8]} 19... Bd6
{[%clk 0:02:41.1]} 20. Bb5 {[%clk 0:01:34.6]} 20... Bd7 {[%clk 0:02:39.9]} 21.
Bxd7 {[%clk 0:01:34]} 21... Qxd7 {[%clk 0:02:40.8]} 22. Ne4 {[%clk 0:01:28.6]}
22... Rb4 {[%clk 0:02:40.3]} 23. Rfe1 {[%clk 0:01:20.2]} 23... f5 {[%clk
0:02:37.9]} 24. Nc3 {[%clk 0:01:13.2]} 24... Rd4 {[%clk 0:02:35.5]} 25. Qg5
{[%clk 0:01:10]} 25... h6 {[%clk 0:02:32.9]} 26. Qg6 {[%clk 0:01:07.5]} 26...
Bc7 {[%clk 0:02:25.6]} 27. Qc6 {[%clk 0:00:48.1]} 27... Qxc6 {[%clk 0:02:18.9]}
28. dxc6 {[%clk 0:00:49]} 28... Kf7 {[%clk 0:02:08.8]} 29. Nd5 {[%clk
0:00:47.9]} 29... Bd6 {[%clk 0:02:03.3]} 30. c4 {[%clk 0:00:46.5]} 30... Rc8
{[%clk 0:02:00.8]} 31. Ra1 {[%clk 0:00:40.3]} 31... Rxc6 {[%clk 0:01:57.1]} 32.
Rxa5 {[%clk 0:00:40.2]} 32... e4 {[%clk 0:01:53.2]} 33. g3 {[%clk 0:00:34.7]}
33... Rc8 {[%clk 0:01:45.5]} 34. Rb5 {[%clk 0:00:30.7]} 34... Rb8 {[%clk
0:01:39.3]} 35. Rxb8 {[%clk 0:00:28.5]} 35... Bxb8 {[%clk 0:01:40.2]} 36. Ra1
{[%clk 0:00:27.3]} 36... g5 {[%clk 0:01:39.2]} 37. Ra8 {[%clk 0:00:25.9]} 37...
Be5 {[%clk 0:01:38]} 38. Ra7+ {[%clk 0:00:24.2]} 38... Ke6 {[%clk 0:01:34.8]}
39. Re7+ {[%clk 0:00:15.1]} 39... Kd6 {[%clk 0:01:34.3]} 40. Rh7 {[%clk
0:00:14.7]} 40... f4 {[%clk 0:01:32.6]} 41. Rxh6+ {[%clk 0:00:14.4]} 41... Kd7
{[%clk 0:01:30.8]} 42. gxf4 {[%clk 0:00:14.2]} 42... gxf4 {[%clk 0:01:30.4]} 43.
Kg2 {[%clk 0:00:14.3]} 43... f3+ {[%clk 0:01:29.8]} 44. Kh3 {[%clk 0:00:14]}
44... Rd2 {[%clk 0:01:28.5]} 45. Kg4 {[%clk 0:00:12.7]} 45... Rxf2 {[%clk
0:01:27.8]} 46. Kf5 {[%clk 0:00:12.3]} 46... Rxh2 {[%clk 0:01:26.5]} 47. Rxh2
{[%clk 0:00:11]} 47... Bxh2 {[%clk 0:01:27.4]} 48. Kxe4 {[%clk 0:00:11.3]} 48...
f2 {[%clk 0:01:26.1]} 49. Ne3 {[%clk 0:00:11.3]} 49... Kc6 {[%clk 0:01:24.4]}
50. Nf1 {[%clk 0:00:11.7]} 50... Bg1 {[%clk 0:01:21]} 51. Kf3 {[%clk 0:00:10.5]}
51... Kb6 {[%clk 0:01:20.7]} 52. Ke2 {[%clk 0:00:09.2]} 52... Ka5 {[%clk
0:01:20.9]} 53. Nd2 {[%clk 0:00:08.8]} 53... Kb4 {[%clk 0:01:20.7]} 54. Ne4
{[%clk 0:00:08.9]} 54... Kxb3 {[%clk 0:01:10.1]} 55. Nxc5+ {[%clk 0:00:09]}
55... Kxc4 {[%clk 0:01:07.5]} 56. Ne4 {[%clk 0:00:09]} 56... Kd4 {[%clk
0:01:07.5]} 57. Nxf2 {[%clk 0:00:09]} 1/2-1/2

[Event "Late-Titled-Tuesday-Blitz-January-23-2024"]
[Site "Chess.com"]
[Date "2024.01.23"]
[Round "10"]
[White "Alex_Sahakyan2006"]
[Black "iturrizaga"]
[Result "1-0"]
[WhiteElo "2773"]
[BlackElo "3010"]
[TimeControl "180+1"]
[EndTime "15:52:29 PST"]
[Termination "Alex_Sahakyan2006 won by resignation"]

1. e4 {[%clk 0:03:00.9]} 1... c5 {[%clk 0:03:00.5]} 2. Nf3 {[%clk 0:03:00.1]}
2... e6 {[%clk 0:03:01.2]} 3. b3 {[%clk 0:02:54.2]} 3... b6 {[%clk 0:03:01]} 4.
Bb2 {[%clk 0:02:50.1]} 4... Bb7 {[%clk 0:03:01.5]} 5. Nc3 {[%clk 0:02:49.3]}
5... Nc6 {[%clk 0:03:00.7]} 6. d4 {[%clk 0:02:48.6]} 6... cxd4 {[%clk
0:03:01.6]} 7. Nxd4 {[%clk 0:02:49.5]} 7... Rc8 {[%clk 0:03:02.3]} 8. Ndb5
{[%clk 0:02:35.2]} 8... Nf6 {[%clk 0:02:41.5]} 9. Nd6+ {[%clk 0:02:28]} 9...
Bxd6 {[%clk 0:02:41.5]} 10. Qxd6 {[%clk 0:02:28.8]} 10... Ne7 {[%clk 0:02:40]}
11. O-O-O {[%clk 0:02:09.1]} 11... Nxe4 {[%clk 0:02:35.4]} 12. Nxe4 {[%clk
0:02:03.7]} 12... Bxe4 {[%clk 0:02:36.3]} 13. Bd3 {[%clk 0:01:35.7]} 13... Nf5
{[%clk 0:02:36]} 14. Qe5 {[%clk 0:01:14.2]} 14... Bxd3 {[%clk 0:02:30.9]} 15.
Rxd3 {[%clk 0:01:15.1]} 15... O-O {[%clk 0:02:24.1]} 16. g4 {[%clk 0:00:57.7]}
16... Rc5 {[%clk 0:02:23.9]} 17. Qf4 {[%clk 0:00:50.6]} 17... Ne7 {[%clk
0:02:22.3]} 18. Qd4 {[%clk 0:00:44.3]} 18... Rg5 {[%clk 0:01:32.5]} 19. Qxd7
{[%clk 0:00:42.5]} 19... Qa8 {[%clk 0:01:23.3]} 20. Rhd1 {[%clk 0:00:38]} 20...
Nd5 {[%clk 0:01:15.9]} 21. h4 {[%clk 0:00:32.8]} 21... Rg6 {[%clk 0:00:58.6]}
22. h5 {[%clk 0:00:29.6]} 22... Rg5 {[%clk 0:00:56.5]} 23. h6 {[%clk 0:00:29.9]}
23... gxh6 {[%clk 0:00:55.3]} 24. Kb1 {[%clk 0:00:19.5]} 24... Qc8 {[%clk
0:00:47]} 25. Qxc8 {[%clk 0:00:14.3]} 25... Rxc8 {[%clk 0:00:40.7]} 26. c4
{[%clk 0:00:14.8]} 26... h5 {[%clk 0:00:15.1]} 27. cxd5 {[%clk 0:00:14.5]} 27...
hxg4 {[%clk 0:00:14.5]} 28. d6 {[%clk 0:00:12.8]} 28... Rf5 {[%clk 0:00:10.1]}
29. d7 {[%clk 0:00:12.3]} 29... Rd8 {[%clk 0:00:10.7]} 30. Ba3 {[%clk
0:00:11.3]} 30... e5 {[%clk 0:00:03.6]} 31. Be7 {[%clk 0:00:11.2]} 31... e4
{[%clk 0:00:03.6]} 32. R3d2 {[%clk 0:00:07]} 32... e3 {[%clk 0:00:02.6]} 33.
fxe3 {[%clk 0:00:06.7]} 33... Ra8 {[%clk 0:00:02.6]} 34. d8=Q+ {[%clk
0:00:06.5]} 34... Rxd8 {[%clk 0:00:03.5]} 35. Rxd8+ {[%clk 0:00:06.9]} 35... Kg7
{[%clk 0:00:04.4]} 36. R8d4 {[%clk 0:00:06.6]} 36... h5 {[%clk 0:00:04.4]} 37.
Rf4 {[%clk 0:00:06.2]} 37... Re5 {[%clk 0:00:05]} 38. Bf6+ {[%clk 0:00:06.6]}
1-0

[Event "Late-Titled-Tuesday-Blitz-January-23-2024"]
[Site "Chess.com"]
[Date "2024.01.23"]
[Round "10"]
[White "Zhigalko_Sergei"]
[Black "grzechu96"]
[Result "1-0"]
[WhiteElo "2959"]
[BlackElo "2723"]
[TimeControl "180+1"]
[EndTime "15:52:30 PST"]
[Termination "Zhigalko_Sergei won by resignation"]

1. e4 {[%clk 0:03:00.9]} 1... c5 {[%clk 0:02:56.5]} 2. c3 {[%clk 0:03:00.7]}
2... Nf6 {[%clk 0:02:56.2]} 3. e5 {[%clk 0:03:01]} 3... Nd5 {[%clk 0:02:55.8]}
4. Nf3 {[%clk 0:03:01.9]} 4... e6 {[%clk 0:02:53.1]} 5. Bc4 {[%clk 0:03:02.1]}
5... d6 {[%clk 0:02:50.7]} 6. d4 {[%clk 0:03:02.2]} 6... cxd4 {[%clk 0:02:51.2]}
7. cxd4 {[%clk 0:03:03.1]} 7... Nc6 {[%clk 0:02:50.9]} 8. O-O {[%clk 0:03:03.3]}
8... Be7 {[%clk 0:02:51.3]} 9. Bd2 {[%clk 0:03:03.8]} 9... O-O {[%clk
0:02:43.4]} 10. Nc3 {[%clk 0:03:03.4]} 10... Nxc3 {[%clk 0:02:42.9]} 11. Bxc3
{[%clk 0:03:04.3]} 11... dxe5 {[%clk 0:02:35.3]} 12. dxe5 {[%clk 0:03:05.2]}
12... Qxd1 {[%clk 0:02:35.3]} 13. Rfxd1 {[%clk 0:03:06]} 13... Rd8 {[%clk
0:02:35.8]} 14. Rxd8+ {[%clk 0:03:05.7]} 14... Bxd8 {[%clk 0:02:35.3]} 15. Rd1
{[%clk 0:03:06.6]} 15... Be7 {[%clk 0:02:29.9]} 16. Bd3 {[%clk 0:03:06]} 16...
Bd7 {[%clk 0:02:29.6]} 17. Bxh7+ {[%clk 0:03:05.9]} 17... Kxh7 {[%clk
0:02:30.5]} 18. Rxd7 {[%clk 0:03:06.3]} 18... Rb8 {[%clk 0:02:29.7]} 19. Nd4
{[%clk 0:02:55.7]} 19... Bc5 {[%clk 0:02:06]} 20. Nxc6 {[%clk 0:02:46.9]} 20...
bxc6 {[%clk 0:02:06.9]} 21. Rxf7 {[%clk 0:02:42.5]} 21... Rd8 {[%clk 0:02:07]}
22. g3 {[%clk 0:02:33.6]} 22... Rd1+ {[%clk 0:02:06.7]} 23. Kg2 {[%clk
0:02:33.6]} 23... Rc1 {[%clk 0:02:05.5]} 24. h4 {[%clk 0:02:18.4]} 24... Kg6
{[%clk 0:02:04]} 25. Rf4 {[%clk 0:02:14.3]} 25... Rc2 {[%clk 0:02:02.5]} 26. g4
{[%clk 0:02:10.6]} 26... Bb6 {[%clk 0:01:58]} 27. Kg3 {[%clk 0:02:05.2]} 27...
Rc1 {[%clk 0:01:57.5]} 28. h5+ {[%clk 0:01:51.9]} 28... Kh7 {[%clk 0:01:57.4]}
29. Bd4 {[%clk 0:01:03.3]} 29... c5 {[%clk 0:01:51.8]} 30. Bc3 {[%clk
0:00:47.3]} 30... Kg8 {[%clk 0:01:38.8]} 31. a4 {[%clk 0:00:41]} 31... Ra1
{[%clk 0:01:26]} 32. Kf3 {[%clk 0:00:39.9]} 32... a6 {[%clk 0:01:03.2]} 33. Kg2
{[%clk 0:00:38.1]} 33... Ra2 {[%clk 0:01:00.5]} 34. g5 {[%clk 0:00:26.2]} 34...
Ra1 {[%clk 0:00:53.2]} 35. g6 {[%clk 0:00:26.5]} 35... Bd8 {[%clk 0:00:41.3]}
36. Rf7 {[%clk 0:00:17.3]} 36... Rxa4 {[%clk 0:00:40.8]} 37. Rd7 {[%clk
0:00:15.8]} 37... Bg5 {[%clk 0:00:39.4]} 38. Rc7 {[%clk 0:00:14.4]} 38... Kf8
{[%clk 0:00:38.8]} 39. Rxc5 {[%clk 0:00:09.2]} 39... Rg4+ {[%clk 0:00:39]} 40.
Kf1 {[%clk 0:00:06.8]} 40... Rh4 {[%clk 0:00:39.1]} 41. Rc8+ {[%clk 0:00:05.8]}
41... Ke7 {[%clk 0:00:37]} 42. Rc7+ {[%clk 0:00:05.8]} 42... Ke8 {[%clk
0:00:34.3]} 43. Rxg7 {[%clk 0:00:05.5]} 43... Rxh5 {[%clk 0:00:34.8]} 44. Ra7
{[%clk 0:00:05.5]} 44... Bf4 {[%clk 0:00:25.5]} 45. Ra8+ {[%clk 0:00:04]} 1-0

[Event "Late-Titled-Tuesday-Blitz-January-23-2024"]
[Site "Chess.com"]
[Date "2024.01.23"]
[Round "10"]
[White "tptagain"]
[Black "mishanick"]
[Result "0-1"]
[WhiteElo "2945"]
[BlackElo "3069"]
[TimeControl "180+1"]
[EndTime "15:52:36 PST"]
[Termination "mishanick won on time"]

1. Nf3 {[%clk 0:03:00.9]} 1... d5 {[%clk 0:02:46.6]} 2. e3 {[%clk 0:03:01]} 2...
Nf6 {[%clk 0:02:46.6]} 3. c4 {[%clk 0:03:01.1]} 3... e6 {[%clk 0:02:46.7]} 4.
Nc3 {[%clk 0:03:01.3]} 4... b6 {[%clk 0:02:46.3]} 5. cxd5 {[%clk 0:03:00.6]}
5... exd5 {[%clk 0:02:47.2]} 6. b3 {[%clk 0:02:59.1]} 6... Bd6 {[%clk
0:02:42.7]} 7. Bb2 {[%clk 0:02:58.1]} 7... O-O {[%clk 0:02:43]} 8. d3 {[%clk
0:02:54]} 8... Re8 {[%clk 0:02:36]} 9. Be2 {[%clk 0:02:54.1]} 9... c5 {[%clk
0:02:34.5]} 10. d4 {[%clk 0:02:52.7]} 10... Bb7 {[%clk 0:02:31.3]} 11. O-O
{[%clk 0:02:52.6]} 11... Nbd7 {[%clk 0:02:30.4]} 12. Nb5 {[%clk 0:02:52.6]}
12... Bb8 {[%clk 0:02:28.4]} 13. Rc1 {[%clk 0:02:52]} 13... Ne4 {[%clk
0:02:28.2]} 14. Nc3 {[%clk 0:02:50.3]} 14... Ndf6 {[%clk 0:02:25.8]} 15. dxc5
{[%clk 0:02:48.8]} 15... bxc5 {[%clk 0:02:24.5]} 16. Nxe4 {[%clk 0:02:38.7]}
16... Nxe4 {[%clk 0:02:23.8]} 17. Nd2 {[%clk 0:02:25.5]} 17... Ng5 {[%clk
0:02:04.9]} 18. h4 {[%clk 0:01:28.4]} 18... Ne6 {[%clk 0:01:47.3]} 19. Nf3
{[%clk 0:01:24.7]} 19... d4 {[%clk 0:01:43.9]} 20. Bb5 {[%clk 0:01:20.4]} 20...
Rf8 {[%clk 0:01:30.9]} 21. exd4 {[%clk 0:01:16.6]} 21... cxd4 {[%clk 0:01:31.3]}
22. Bc6 {[%clk 0:00:46.3]} 22... Bxc6 {[%clk 0:01:21.3]} 23. Rxc6 {[%clk
0:00:47.2]} 23... Qd5 {[%clk 0:00:44]} 24. Rc4 {[%clk 0:00:47.2]} 24... d3
{[%clk 0:00:44.7]} 25. Qd2 {[%clk 0:00:47.6]} 25... Rd8 {[%clk 0:00:44.3]} 26.
Rd1 {[%clk 0:00:42.4]} 26... Bc7 {[%clk 0:00:24.4]} 27. Ng5 {[%clk 0:00:21.8]}
27... Ba5 {[%clk 0:00:14.8]} 28. Bc3 {[%clk 0:00:22.3]} 28... Bb6 {[%clk
0:00:09.5]} 29. Nxe6 {[%clk 0:00:20.6]} 29... Qxe6 {[%clk 0:00:10.4]} 30. Qg5
{[%clk 0:00:18.5]} 30... f6 {[%clk 0:00:10.1]} 31. Qg3 {[%clk 0:00:17.5]} 31...
Qd6 {[%clk 0:00:06.1]} 32. Qg4 {[%clk 0:00:07]} 32... Rd7 {[%clk 0:00:03.6]} 33.
h5 {[%clk 0:00:04.6]} 33... h6 {[%clk 0:00:03.6]} 34. Re4 {[%clk 0:00:04.5]}
34... Rad8 {[%clk 0:00:03.4]} 35. Re6 {[%clk 0:00:04.3]} 35... Qd5 {[%clk
0:00:02.6]} 36. Bxf6 {[%clk 0:00:04.4]} 36... Rf8 {[%clk 0:00:02.2]} 37. Kh1
{[%clk 0:00:02.3]} 37... Bxf2 {[%clk 0:00:01.7]} 38. Bb2 {[%clk 0:00:01.7]}
38... Rf5 {[%clk 0:00:02.3]} 0-1

[Event "Late-Titled-Tuesday-Blitz-January-23-2024"]
[Site "Chess.com"]
[Date "2024.01.23"]
[Round "10"]
[White "messiboca"]
[Black "ozates"]
[Result "0-1"]
[WhiteElo "2775"]
[BlackElo "2653"]
[TimeControl "180+1"]
[EndTime "15:52:36 PST"]
[Termination "ozates won on time"]

1. Nf3 {[%clk 0:02:53.9]} 1... c5 {[%clk 0:02:59.1]} 2. e3 {[%clk 0:02:52]} 2...
Nc6 {[%clk 0:02:58.9]} 3. d4 {[%clk 0:02:52.1]} 3... cxd4 {[%clk 0:02:59.8]} 4.
exd4 {[%clk 0:02:51.7]} 4... d5 {[%clk 0:03:00.7]} 5. c3 {[%clk 0:02:50.5]} 5...
Nf6 {[%clk 0:02:58.2]} 6. Bf4 {[%clk 0:02:50.5]} 6... Bg4 {[%clk 0:02:57.7]} 7.
Nbd2 {[%clk 0:02:48.3]} 7... e6 {[%clk 0:02:57.8]} 8. Be2 {[%clk 0:02:45.4]}
8... Bd6 {[%clk 0:02:58.3]} 9. Bxd6 {[%clk 0:02:44.6]} 9... Qxd6 {[%clk
0:02:58.2]} 10. O-O {[%clk 0:02:43.8]} 10... O-O {[%clk 0:02:58.8]} 11. Ne5
{[%clk 0:02:43.2]} 11... Bxe2 {[%clk 0:02:48.9]} 12. Qxe2 {[%clk 0:02:44.1]}
12... Nd7 {[%clk 0:02:48.8]} 13. Nd3 {[%clk 0:02:44.1]} 13... e5 {[%clk
0:02:45.4]} 14. dxe5 {[%clk 0:02:42.6]} 14... Ndxe5 {[%clk 0:02:45.7]} 15. Nxe5
{[%clk 0:02:40.3]} 15... Nxe5 {[%clk 0:02:42.1]} 16. Rad1 {[%clk 0:02:36.2]}
16... Rfe8 {[%clk 0:02:37.3]} 17. Nb3 {[%clk 0:02:17.1]} 17... Rad8 {[%clk
0:02:36.8]} 18. Rfe1 {[%clk 0:02:06.9]} 18... h6 {[%clk 0:02:20.9]} 19. Nd4
{[%clk 0:02:04.4]} 19... a6 {[%clk 0:02:18.2]} 20. Nf5 {[%clk 0:02:00.9]} 20...
Qf6 {[%clk 0:02:17.5]} 21. Ne3 {[%clk 0:01:57.9]} 21... Qc6 {[%clk 0:01:50.6]}
22. Nf5 {[%clk 0:00:55]} 22... Qf6 {[%clk 0:01:35.8]} 23. Nd4 {[%clk 0:00:55]}
23... g6 {[%clk 0:01:25.5]} 24. h3 {[%clk 0:00:54.4]} 24... Kg7 {[%clk
0:01:25.7]} 25. Qc2 {[%clk 0:00:46.6]} 25... h5 {[%clk 0:01:24.9]} 26. Re3
{[%clk 0:00:44]} 26... Rc8 {[%clk 0:01:11.5]} 27. Rde1 {[%clk 0:00:42.2]} 27...
Re7 {[%clk 0:00:59.3]} 28. Qb3 {[%clk 0:00:42.6]} 28... Rd8 {[%clk 0:00:40.4]}
29. Qa3 {[%clk 0:00:36.7]} 29... Rde8 {[%clk 0:00:38]} 30. Qb3 {[%clk
0:00:14.3]} 30... Nd3 {[%clk 0:00:35.9]} 31. Rf1 {[%clk 0:00:10.4]} 31... Rxe3
{[%clk 0:00:16.8]} 32. fxe3 {[%clk 0:00:11.3]} 32... Qg5 {[%clk 0:00:17.3]} 33.
Qxb7 {[%clk 0:00:10]} 33... Qxe3+ {[%clk 0:00:17.9]} 34. Kh2 {[%clk 0:00:09.5]}
34... Qe5+ {[%clk 0:00:15.7]} 35. Kh1 {[%clk 0:00:10.1]} 35... Re7 {[%clk
0:00:15.1]} 36. Qc8 {[%clk 0:00:05]} 36... Qg3 {[%clk 0:00:12.3]} 37. Qd8 {[%clk
0:00:02.3]} 37... Nf2+ {[%clk 0:00:12]} 38. Kg1 {[%clk 0:00:01.4]} 38... Nxh3+
{[%clk 0:00:12.3]} 39. Kh1 {[%clk 0:00:01.9]} 39... Nf2+ {[%clk 0:00:09.8]} 40.
Kg1 {[%clk 0:00:02.2]} 40... Ng4 {[%clk 0:00:09]} 0-1